[Event "Reykjavik Open 2025"]
[Site "Reykjavik, Iceland"]
[Date "2025.04.15"]
[Round "9.13"]
[White "Pipiras, Filipa Fortuna"]
[Black "Stefansson, Vignir Vatnar"]
[Result "0-1"]
[WhiteElo "2195"]
[WhiteTitle "FM"]
[WhiteFideId "1944894"]
[BlackElo "2536"]
[BlackTitle "GM"]
[BlackFideId "2308649"]
[TimeControl "90+30 +30 after 40 moves"]
[Variant "Standard"]
[ECO "A46"]
[Opening "Indian Defense: Wade-Tartakower Defense"]
[StudyName "Round 9"]
1. d4 { [%clk 1:30:57] } 1... d6 { [%clk 1:30:10] } 2. Nf3 { [%clk 1:30:46] } 2... Nf6 { [%clk 1:30:33] } 3. c4 { [%clk 1:31:07] } 3... g6 { [%clk 1:30:59] } 4. g3 { [%clk 1:31:16] } 4... Bg7 { [%clk 1:31:22] } 5. Bg2 { [%clk 1:31:40] } 5... Bf5 { [%clk 1:31:46] } 6. O-O { [%clk 1:29:41] } 6... O-O { [%clk 1:31:58] } 7. b3 { [%clk 1:27:27] } 7... a5 { [%clk 1:32:16] } 8. Bb2 { [%clk 1:26:49] } 8... c6 { [%clk 1:31:46] } 9. Nc3 { [%clk 1:24:25] } 9... Ne4 { [%clk 1:30:57] } 10. Nh4 { [%clk 1:24:07] } 10... Nxc3 { [%clk 1:31:20] } 11. Bxc3 { [%clk 1:24:34] } 11... Bd7 { [%clk 1:26:55] } 12. Qd2 { [%clk 1:23:33] } 12... f5 { [%clk 1:11:14] } 13. Rad1 { [%clk 1:19:02] } 13... a4 { [%clk 1:08:32] } 14. b4 { [%clk 1:15:02] } 14... Na6 { [%clk 1:08:36] } 15. Rfe1 { [%clk 1:11:06] } 15... Nc7 { [%clk 1:07:44] } 16. d5 { [%clk 0:55:11] } 16... Bxc3 { [%clk 1:07:31] } 17. Qxc3 { [%clk 0:55:37] } 17... cxd5 { [%clk 1:07:21] } 18. cxd5 { [%clk 0:51:58] } 18... Nb5 { [%clk 1:02:11] } 19. Qe3 { [%clk 0:50:37] } 19... Qe8 { [%clk 1:02:30] } 20. Nf3 { [%clk 0:48:21] } 20... Qf7 { [%clk 1:01:32] } 21. Nd4 { [%clk 0:41:52] } 21... Nc7 { [%clk 0:54:30] } 22. Qd3 { [%clk 0:37:09] } 22... Nxd5 { [%clk 0:47:27] } 23. Nxf5 { [%clk 0:36:41] } 23... Bxf5 { [%clk 0:45:11] } 24. Qxd5 { [%clk 0:33:08] } 24... Be6 { [%clk 0:44:58] } 25. Qxe6 { [%clk 0:31:39] } 25... Qxe6 { [%clk 0:45:23] } 26. Bd5 { [%clk 0:32:04] } 26... Kf7 { [%clk 0:42:08] } 27. e4 { [%clk 0:28:34] } 27... Rac8 { [%clk 0:30:22] } 28. e5 { [%clk 0:27:01] } 28... Qxd5 { [%clk 0:30:12] } 29. Rxd5 { [%clk 0:27:26] } 29... Ke6 { [%clk 0:30:38] } 30. Rb5 { [%clk 0:23:39] } 30... Rc2 { [%clk 0:27:14] } 31. exd6+ { [%clk 0:19:18] } 31... Kxd6 { [%clk 0:27:36] } 32. f4 { [%clk 0:19:26] } 32... Kc6 { [%clk 0:22:39] } 33. Rbe5 { [%clk 0:17:46] } 33... Rd8 { [%clk 0:22:46] } 34. Rxe7 { [%clk 0:12:34] } 34... Rdd2 { [%clk 0:23:02] } 35. R1e6+ { [%clk 0:06:25] } 35... Kd5 { [%clk 0:23:10] } 36. Re5+ { [%clk 0:06:46] } 36... Kc4 { [%clk 0:17:12] } 37. Rc5+ { [%clk 0:05:34] } 37... Kxb4 { [%clk 0:17:26] } 38. Rxc2 { [%clk 0:05:59] } 38... Rxc2 { [%clk 0:17:52] } 39. Rxb7+ { [%clk 0:06:24] } 39... Ka3 { [%clk 0:18:14] } 40. Rxh7 { [%clk 0:05:16] } 40... Kxa2 { [%clk 0:18:05] } 41. g4 { [%clk 0:23:17] } 41... a3 { [%clk 0:46:17] } 42. f5 { [%clk 0:21:33] } 42... gxf5 { [%clk 0:46:14] } 43. gxf5 { [%clk 0:21:56] } 43... Kb3 { [%clk 0:46:24] } 44. f6 { [%clk 0:14:53] } 44... a2 { [%clk 0:45:35] } 45. Ra7 { [%clk 0:15:17] } 45... Rc1+ { [%clk 0:45:12] } 46. Kg2 { [%clk 0:15:38] } 46... a1=Q { [%clk 0:45:37] } 47. Rxa1 { [%clk 0:16:01] } 47... Rxa1 { [%clk 0:46:04] } 48. f7 { [%clk 0:16:14] } 48... Ra8 { [%clk 0:46:29] } 49. Kg3 { [%clk 0:15:23] } 49... Kc4 { [%clk 0:46:25] } 50. Kg4 { [%clk 0:14:44] } 50... Rf8 { [%clk 0:46:40] } 51. h4 { [%clk 0:13:36] } 51... Kd5 { [%clk 0:46:57] } 52. Kf5 { [%clk 0:12:58] } 52... Rxf7+ { [%clk 0:47:23] } 53. Kg6 { [%clk 0:13:18] } 53... Ke6 { [%clk 0:47:36] } 54. h5 { [%clk 0:13:43] } 54... Rf1 { [%clk 0:47:37] } 55. h6 { [%clk 0:13:14] } 55... Rg1+ { [%clk 0:48:00] } 56. Kh7 { [%clk 0:13:34] } 56... Kf7 { [%clk 0:48:22] } 57. Kh8 { [%clk 0:13:58] } 57... Rg8+ { [%clk 0:48:47] } 58. Kh7 { [%clk 0:14:23] } 58... Rg6 { [%clk 0:49:13] } 0-1

[Event "Reykjavik Open 2025"]
[Site "Reykjavik, Iceland"]
[Date "2025.04.15"]
[Round "9.14"]
[White "Bekker, Stefan"]
[Black "Gorshtein, Ido"]
[Result "0-1"]
[WhiteElo "2358"]
[WhiteTitle "FM"]
[WhiteFideId "1022229"]
[BlackElo "2557"]
[BlackTitle "GM"]
[BlackFideId "2815532"]
[TimeControl "90+30 +30 after 40 moves"]
[Variant "Standard"]
[ECO "E00"]
[Opening "Catalan Opening"]
[StudyName "Round 9"]
1. d4 { [%clk 1:30:57] } 1... Nf6 { [%clk 1:30:47] } 2. c4 { [%clk 1:31:20] } 2... e6 { [%clk 1:31:13] } 3. g3 { [%clk 1:31:46] } 3... Bb4+ { [%clk 1:30:20] } 4. Bd2 { [%clk 1:31:49] } 4... Be7 { [%clk 1:30:06] } 5. Nf3 { [%clk 1:32:14] } 5... a6 { [%clk 1:29:24] } 6. Bg2 { [%clk 1:32:15] } 6... b5 { [%clk 1:26:47] } 7. b3 { [%clk 1:30:17] } 7... Bb7 { [%clk 1:27:07] } 8. O-O { [%clk 1:27:02] } 8... O-O { [%clk 1:27:08] } 9. Qc2 { [%clk 1:25:46] } 9... d6 { [%clk 1:24:06] } 10. Nc3 { [%clk 1:25:05] } 10... b4 { [%clk 1:24:27] } 11. Na4 { [%clk 1:25:12] } 11... Be4 { [%clk 1:22:52] } 12. Qb2 { [%clk 1:23:25] } 12... a5 { [%clk 1:22:33] } 13. Rad1 { [%clk 1:20:00] } 13... Nbd7 { [%clk 1:20:51] } 14. Qc1 { [%clk 1:20:17] } 14... Qb8 { [%clk 1:15:43] } 15. Rfe1 { [%clk 1:19:51] } 15... Qb7 { [%clk 1:15:27] } 16. Bh3 { [%clk 1:16:56] } 16... c5 { [%clk 1:07:51] } 17. dxc5 { [%clk 1:15:23] } 17... dxc5 { [%clk 1:08:12] } 18. Bf4 { [%clk 1:08:42] } 18... Rad8 { [%clk 1:08:28] } 19. Nd2 { [%clk 1:01:54] } 19... Bc6 { [%clk 1:08:34] } 20. Nb2 { [%clk 1:02:07] } 20... h6 { [%clk 1:07:37] } 21. Nd3 { [%clk 0:58:16] } 21... Nh7 { [%clk 1:06:13] } 22. Nf3 { [%clk 0:51:25] } 22... Be4 { [%clk 1:00:53] } 23. Nd2 { [%clk 0:48:53] } 23... Ng5 { [%clk 1:00:16] } 24. Bf1 { [%clk 0:46:57] } 24... Bc6 { [%clk 1:00:25] } 25. h4 { [%clk 0:43:34] } 25... Nh7 { [%clk 1:00:40] } 26. Nf3 { [%clk 0:43:25] } 26... Be4 { [%clk 0:50:33] } 27. Nd2 { [%clk 0:43:48] } 27... Bxd3 { [%clk 0:50:37] } 28. exd3 { [%clk 0:43:25] } 28... Nb8 { [%clk 0:50:56] } 29. Bg2 { [%clk 0:43:48] } 29... Qb6 { [%clk 0:50:31] } 30. Nf3 { [%clk 0:41:32] } 30... Nc6 { [%clk 0:49:42] } 31. Ne5 { [%clk 0:33:37] } 31... Nxe5 { [%clk 0:48:22] } 32. Bxe5 { [%clk 0:34:04] } 32... Rd7 { [%clk 0:43:28] } 33. Be4 { [%clk 0:31:25] } 33... Nf6 { [%clk 0:43:28] } 34. Bf3 { [%clk 0:31:30] } 34... Rfd8 { [%clk 0:43:23] } 35. Qe3 { [%clk 0:31:36] } 35... Ne8 { [%clk 0:43:09] } 36. Qe4 { [%clk 0:31:14] } 36... Bf6 { [%clk 0:41:52] } 37. Qc6 { [%clk 0:31:32] } 37... Qa7 { [%clk 0:41:36] } 38. d4 { [%clk 0:26:05] } 38... cxd4 { [%clk 0:39:28] } 39. Qb5 { [%clk 0:25:30] } 39... Nc7 { [%clk 0:36:01] } 40. Qa4 { [%clk 0:21:45] } 40... Qc5 { [%clk 0:30:27] } 41. Qc6 { [%clk 0:21:05] } 41... Qa7 { [%clk 0:24:59] } 42. Qa4 { [%clk 0:21:29] } 42... d3 { [%clk 0:24:01] } 43. Bc6 { [%clk 0:19:20] } 43... d2 { [%clk 0:23:30] } 44. Re2 { [%clk 0:11:27] } 44... Rd3 { [%clk 0:21:08] } 45. Be4 { [%clk 0:09:13] } 45... Bxe5 { [%clk 0:14:05] } 46. Bxd3 { [%clk 0:08:53] } 46... Rxd3 { [%clk 0:14:27] } 47. Rxe5 { [%clk 0:09:04] } 47... Rxg3+ { [%clk 0:14:48] } 48. Kf1 { [%clk 0:09:03] } 48... Qb7 { [%clk 0:15:01] } 49. Qd7 { [%clk 0:03:23] } 49... Qh1+ { [%clk 0:15:04] } 50. Ke2 { [%clk 0:03:26] } 50... Qf3+ { [%clk 0:15:31] } 0-1

[Event "Reykjavik Open 2025"]
[Site "Reykjavik, Iceland"]
[Date "2025.04.15"]
[Round "9.16"]
[White "Lohia, Sohum"]
[Black "Draskovic, Luka"]
[Result "0-1"]
[WhiteElo "2354"]
[WhiteTitle "FM"]
[WhiteFideId "5819369"]
[BlackElo "2488"]
[BlackTitle "GM"]
[BlackFideId "944335"]
[TimeControl "90+30 +30 after 40 moves"]
[Variant "Standard"]
[ECO "C41"]
[Opening "Philidor Defense: Lion Variation"]
[StudyName "Round 9"]
1. e4 { [%clk 1:30:54] } 1... d6 { [%clk 1:30:05] } 2. d4 { [%clk 1:31:13] } 2... Nf6 { [%clk 1:30:28] } 3. Nc3 { [%clk 1:31:34] } 3... e5 { [%clk 1:30:47] } 4. Nf3 { [%clk 1:31:49] } 4... Nbd7 { [%clk 1:31:07] } 5. Bc4 { [%clk 1:32:06] } 5... Be7 { [%clk 1:31:19] } 6. O-O { [%clk 1:32:16] } 6... O-O { [%clk 1:31:20] } 7. a4 { [%clk 1:32:31] } 7... exd4 { [%clk 1:30:02] } 8. Nxd4 { [%clk 1:31:21] } 8... Re8 { [%clk 1:29:54] } 9. Re1 { [%clk 1:22:46] } 9... Bf8 { [%clk 1:22:43] } 10. Bf4 { [%clk 1:14:25] } 10... Nc5 { [%clk 1:06:02] } 11. Qf3 { [%clk 1:00:30] } 11... Bg4 { [%clk 0:49:37] } 12. Qg3 { [%clk 1:00:42] } 12... Qd7 { [%clk 0:48:24] } 13. h3 { [%clk 0:59:16] } 13... Nh5 { [%clk 0:45:00] } 14. Qxg4 { [%clk 0:59:35] } 14... Qxg4 { [%clk 0:45:26] } 15. hxg4 { [%clk 0:59:57] } 15... Nxf4 { [%clk 0:45:51] } 16. g3 { [%clk 0:59:28] } 16... Nfe6 { [%clk 0:45:00] } 17. Nxe6 { [%clk 0:57:35] } 17... Nxe6 { [%clk 0:42:57] } 18. Kg2 { [%clk 0:48:09] } 18... c6 { [%clk 0:40:41] } 19. Rad1 { [%clk 0:44:58] } 19... Rad8 { [%clk 0:37:18] } 20. b3 { [%clk 0:33:49] } 20... g6 { [%clk 0:35:22] } 21. Bxe6 { [%clk 0:27:44] } 21... Rxe6 { [%clk 0:32:49] } 22. f3 { [%clk 0:21:14] } 22... Rde8 { [%clk 0:22:35] } 23. Kf2 { [%clk 0:17:49] } 23... Re5 { [%clk 0:21:28] } 24. Re2 { [%clk 0:09:24] } 24... h5 { [%clk 0:18:11] } 25. gxh5 { [%clk 0:09:03] } 25... Rxh5 { [%clk 0:18:34] } 26. g4 { [%clk 0:03:47] } 26... Rh2+ { [%clk 0:15:25] } 27. Kf1 { [%clk 0:03:47] } 27... Rh4 { [%clk 0:13:45] } 28. Kg2 { [%clk 0:03:20] } 28... Bg7 { [%clk 0:13:12] } 29. Rd3 { [%clk 0:02:47] } 29... Be5 { [%clk 0:13:03] } 30. Kf2 { [%clk 0:02:24] } 30... Kg7 { [%clk 0:13:05] } 31. Ke3 { [%clk 0:02:02] } 31... d5 { [%clk 0:11:38] } 32. Kd2 { [%clk 0:00:59] } 32... d4 { [%clk 0:10:13] } 33. Na2 { [%clk 0:01:02] } 33... Rh1 { [%clk 0:08:36] } 34. Re1 { [%clk 0:01:20] } 34... Reh8 { [%clk 0:08:52] } 35. Rxh1 { [%clk 0:00:56] } 35... Rxh1 { [%clk 0:09:16] } 36. b4 { [%clk 0:00:37] } 36... Bf4+ { [%clk 0:07:50] } 37. Ke2 { [%clk 0:01:03] } 37... Ra1 { [%clk 0:08:13] } 38. Ra3 { [%clk 0:00:37] } 38... Bc1 { [%clk 0:08:36] } 39. Nxc1 { [%clk 0:00:33] } 39... Rxa3 { [%clk 0:09:00] } 40. a5 { [%clk 0:01:00] } 40... Re3+ { [%clk 0:09:07] } 41. Kf2 { [%clk 0:01:25] } 41... Rc3 { [%clk 0:09:31] } 42. Ke1 { [%clk 0:00:25] } 0-1

[Event "Reykjavik Open 2025"]
[Site "Reykjavik, Iceland"]
[Date "2025.04.15"]
[Round "9.23"]
[White "Priansh Das"]
[Black "Willems, Niels"]
[Result "1-0"]
[WhiteElo "2262"]
[WhiteTitle "FM"]
[WhiteFideId "45029946"]
[BlackElo "2394"]
[BlackTitle "FM"]
[BlackFideId "20695586"]
[TimeControl "90+30 +30 after 40 moves"]
[Variant "Standard"]
[ECO "C55"]
[Opening "Italian Game: Two Knights Defense, Modern Bishop's Opening"]
[StudyName "Round 9"]
1. e4 { [%clk 1:30:55] } 1... e5 { [%clk 1:30:51] } 2. Nf3 { [%clk 1:31:21] } 2... Nc6 { [%clk 1:31:15] } 3. Bc4 { [%clk 1:31:48] } 3... Nf6 { [%clk 1:31:38] } 4. d3 { [%clk 1:32:14] } 4... d5 { [%clk 1:32:01] } 5. exd5 { [%clk 1:32:39] } 5... Nxd5 { [%clk 1:32:25] } 6. O-O { [%clk 1:33:03] } 6... Nb6 { [%clk 1:32:49] } 7. Bb5 { [%clk 1:32:59] } 7... Bd6 { [%clk 1:33:08] } 8. Bxc6+ { [%clk 1:31:12] } 8... bxc6 { [%clk 1:33:33] } 9. Nxe5 { [%clk 1:29:36] } 9... Bxe5 { [%clk 1:33:56] } 10. Re1 { [%clk 1:30:03] } 10... Qe7 { [%clk 1:34:16] } 11. Kh1 { [%clk 1:30:20] } 11... O-O { [%clk 1:34:37] } 12. f4 { [%clk 1:30:37] } 12... f6 { [%clk 1:35:01] } 13. fxe5 { [%clk 1:30:59] } 13... fxe5 { [%clk 1:35:25] } 14. Be3 { [%clk 1:30:26] } 14... Nd5 { [%clk 1:32:45] } 15. Nd2 { [%clk 1:29:04] } 15... Qh4 { [%clk 1:13:42] } 16. Ne4 { [%clk 1:22:58] } 16... h6 { [%clk 1:01:05] } 17. Qd2 { [%clk 1:18:35] } 17... Bf5 { [%clk 0:55:13] } 18. Ng3 { [%clk 0:58:53] } 18... Bg6 { [%clk 0:48:28] } 19. Bc5 { [%clk 0:53:13] } 19... Rfe8 { [%clk 0:48:48] } 20. Rf1 { [%clk 0:52:03] } 20... e4 { [%clk 0:37:51] } 21. dxe4 { [%clk 0:52:10] } 21... Bxe4 { [%clk 0:37:36] } 22. Rae1 { [%clk 0:34:57] } 22... Nf6 { [%clk 0:32:54] } 23. Rf4 { [%clk 0:26:55] } 23... Qg5 { [%clk 0:28:27] } 24. Be3 { [%clk 0:22:55] } 24... Qd5 { [%clk 0:27:34] } 25. Qf2 { [%clk 0:19:10] } 25... Re6 { [%clk 0:26:46] } 26. c4 { [%clk 0:15:06] } 26... Qd3 { [%clk 0:09:10] } 27. Bd4 { [%clk 0:15:17] } 27... Rae8 { [%clk 0:09:39] } 28. Rf1 { [%clk 0:15:28] } 28... Nd7 { [%clk 0:06:31] } 29. Rxe4 { [%clk 0:14:33] } 1-0

[Event "Reykjavik Open 2025"]
[Site "Reykjavik, Iceland"]
[Date "2025.04.15"]
[Round "9.24"]
[White "Borne, Felix"]
[Black "Heimisson, Hilmir Freyr"]
[Result "1-0"]
[WhiteElo "2225"]
[WhiteFideId "551039915"]
[BlackElo "2376"]
[BlackTitle "IM"]
[BlackFideId "2309998"]
[TimeControl "90+30 +30 after 40 moves"]
[Variant "Standard"]
[ECO "A37"]
[Opening "English Opening: Symmetrical Variation, Botvinnik System Reversed, with Nf3"]
[StudyName "Round 9"]
1. Nf3 { [%clk 1:30:58] } 1... c5 { [%clk 1:28:29] } 2. g3 { [%clk 1:31:24] } 2... Nc6 { [%clk 1:26:04] } 3. c4 { [%clk 1:31:50] } 3... g6 { [%clk 1:25:48] } 4. Bg2 { [%clk 1:32:12] } 4... Bg7 { [%clk 1:24:45] } 5. Nc3 { [%clk 1:32:28] } 5... e5 { [%clk 1:24:22] } 6. O-O { [%clk 1:32:31] } 6... d6 { [%clk 1:24:18] } 7. d3 { [%clk 1:32:16] } 7... Nge7 { [%clk 1:24:30] } 8. a3 { [%clk 1:32:09] } 8... a5 { [%clk 1:24:41] } 9. Rb1 { [%clk 1:32:33] } 9... O-O { [%clk 1:22:59] } 10. b3 { [%clk 1:32:59] } 10... h6 { [%clk 1:20:35] } 11. Nd2 { [%clk 1:33:11] } 11... Bg4 { [%clk 1:14:24] } 12. h3 { [%clk 1:26:16] } 12... Be6 { [%clk 1:12:19] } 13. Nd5 { [%clk 1:26:36] } 13... Rb8 { [%clk 1:03:13] } 14. Bb2 { [%clk 1:24:51] } 14... Qd7 { [%clk 0:59:34] } 15. Nb6 { [%clk 1:24:06] } 15... Qc7 { [%clk 0:57:35] } 16. Nd5 { [%clk 1:24:28] } 16... Qd7 { [%clk 0:57:58] } 17. Nb6 { [%clk 1:24:54] } 17... Qd8 { [%clk 0:58:22] } 18. Nd5 { [%clk 1:25:19] } 18... b6 { [%clk 0:54:17] } 19. e3 { [%clk 1:24:17] } 19... Qd7 { [%clk 0:54:08] } 20. Kh2 { [%clk 1:24:39] } 20... b5 { [%clk 0:51:29] } 21. Re1 { [%clk 1:22:17] } 21... f5 { [%clk 0:48:35] } 22. Qc2 { [%clk 1:18:14] } 22... Kh8 { [%clk 0:46:24] } 23. f4 { [%clk 1:16:11] } 23... Bg8 { [%clk 0:42:52] } 24. Nxe7 { [%clk 1:05:14] } 24... Nxe7 { [%clk 0:43:12] } 25. cxb5 { [%clk 1:05:20] } 25... Qxb5 { [%clk 0:37:12] } 26. Bc3 { [%clk 0:57:01] } 26... Bd5 { [%clk 0:30:48] } 27. Nc4 { [%clk 0:55:04] } 27... Bxc4 { [%clk 0:18:40] } 28. bxc4 { [%clk 0:48:40] } 28... Qd7 { [%clk 0:16:26] } 29. Bxa5 { [%clk 0:48:06] } 29... g5 { [%clk 0:15:20] } 30. Bc3 { [%clk 0:38:13] } 30... gxf4 { [%clk 0:14:02] } 31. exf4 { [%clk 0:36:24] } 31... Ng6 { [%clk 0:14:26] } 32. Rf1 { [%clk 0:34:32] } 32... exf4 { [%clk 0:10:00] } 33. gxf4 { [%clk 0:34:39] } 33... Rxb1 { [%clk 0:09:43] } 34. Rxb1 { [%clk 0:34:42] } 34... d5 { [%clk 0:07:03] } 35. Bxd5 { [%clk 0:33:56] } 35... Qc7 { [%clk 0:07:02] } 36. Bxg7+ { [%clk 0:29:49] } 36... Qxg7 { [%clk 0:07:23] } 37. Qf2 { [%clk 0:29:21] } 37... Re8 { [%clk 0:05:29] } 38. Rb7 { [%clk 0:19:40] } 38... Qd4 { [%clk 0:02:03] } 39. Qxd4+ { [%clk 0:17:51] } 39... cxd4 { [%clk 0:02:31] } 40. Kg3 { [%clk 0:17:13] } 40... Re3+ { [%clk 0:01:34] } 41. Bf3 { [%clk 0:17:05] } 41... Rxd3 { [%clk 0:28:56] } 42. c5 { [%clk 0:46:47] } 42... Rc3 { [%clk 0:28:30] } 43. c6 { [%clk 0:45:30] } 43... d3 { [%clk 0:15:47] } 44. Rd7 { [%clk 0:43:49] } 44... Nf8 { [%clk 0:15:14] } 45. a4 { [%clk 0:37:46] } 45... Rxc6 { [%clk 0:11:16] } 46. Bxc6 { [%clk 0:34:59] } 46... Nxd7 { [%clk 0:11:40] } 47. Kf2 { [%clk 0:33:46] } 47... Nc5 { [%clk 0:09:42] } 48. a5 { [%clk 0:32:21] } 48... d2 { [%clk 0:09:59] } 49. Bf3 { [%clk 0:32:45] } 49... Kg7 { [%clk 0:08:33] } 50. Ke2 { [%clk 0:32:13] } 50... Kf6 { [%clk 0:05:30] } 51. Bb7 { [%clk 0:31:53] } 51... Ne6 { [%clk 0:03:49] } 52. a6 { [%clk 0:32:02] } 52... Nxf4+ { [%clk 0:04:12] } 53. Kxd2 { [%clk 0:31:47] } 53... Ne6 { [%clk 0:04:34] } 54. a7 { [%clk 0:29:59] } 54... Nc7 { [%clk 0:05:01] } 55. Kd3 { [%clk 0:29:05] } 55... Ke5 { [%clk 0:04:46] } 56. Kc4 { [%clk 0:29:28] } 56... Kd6 { [%clk 0:03:58] } 57. Bg2 { [%clk 0:29:11] } 57... Kd7 { [%clk 0:01:06] } 58. Kc5 { [%clk 0:28:53] } 58... Ne6+ { [%clk 0:00:39] } 59. Kb6 { [%clk 0:29:14] } 59... Nc7 { [%clk 0:01:06] } 60. Kb7 { [%clk 0:29:27] } 60... Kd8 { [%clk 0:00:34] } 61. Bc6 { [%clk 0:29:42] } 61... f4 { [%clk 0:00:38] } 62. Bh1 { [%clk 0:29:44] } 62... Kd7 { [%clk 0:00:54] } 63. Bg2 { [%clk 0:30:07] } 63... Kd6 { [%clk 0:00:39] } 64. Bc6 { [%clk 0:30:32] } 64... h5 { [%clk 0:00:43] } 65. h4 { [%clk 0:30:57] } 65... Na8 { [%clk 0:00:35] } 66. Kxa8 { [%clk 0:31:02] } 66... Kxc6 { [%clk 0:01:00] } 67. Kb8 { [%clk 0:31:25] } 67... Kd5 { [%clk 0:00:37] } 1-0

[Event "Reykjavik Open 2025"]
[Site "Reykjavik, Iceland"]
[Date "2025.04.15"]
[Round "9.25"]
[White "Shafer, Logan C"]
[Black "Kunin, Vitaly"]
[Result "0-1"]
[WhiteElo "2193"]
[WhiteTitle "CM"]
[WhiteFideId "30993342"]
[BlackElo "2522"]
[BlackTitle "GM"]
[BlackFideId "4128737"]
[TimeControl "90+30 +30 after 40 moves"]
[Variant "Standard"]
[ECO "E10"]
[Opening "Indian Defense: Dzindzi-Indian Defense"]
[StudyName "Round 9"]
1. d4 { [%clk 1:30:58] } 1... Nf6 { [%clk 1:29:54] } 2. c4 { [%clk 1:31:16] } 2... e6 { [%clk 1:30:14] } 3. Nf3 { [%clk 1:31:41] } 3... a6 { [%clk 1:30:34] } 4. Nc3 { [%clk 1:29:29] } 4... d5 { [%clk 1:30:54] } 5. cxd5 { [%clk 1:29:48] } 5... exd5 { [%clk 1:31:15] } 6. Bg5 { [%clk 1:30:07] } 6... Be6 { [%clk 1:31:27] } 7. e3 { [%clk 1:30:19] } 7... Nbd7 { [%clk 1:31:42] } 8. Bd3 { [%clk 1:30:33] } 8... Bd6 { [%clk 1:30:39] } 9. Qc2 { [%clk 1:30:14] } 9... h6 { [%clk 1:30:36] } 10. Bh4 { [%clk 1:30:37] } 10... Rc8 { [%clk 1:23:37] } 11. O-O { [%clk 1:27:45] } 11... c5 { [%clk 1:23:41] } 12. dxc5 { [%clk 1:26:52] } 12... Rxc5 { [%clk 1:23:54] } 13. Nd4 { [%clk 1:16:21] } 13... O-O { [%clk 1:16:11] } 14. Bh7+ { [%clk 1:06:49] } 14... Kh8 { [%clk 1:16:16] } 15. Bf5 { [%clk 1:07:18] } 15... Re8 { [%clk 1:13:19] } 16. Qd3 { [%clk 1:06:02] } 16... Qb8 { [%clk 1:10:33] } 17. Bg3 { [%clk 1:04:33] } 17... Bxg3 { [%clk 1:10:37] } 18. hxg3 { [%clk 1:04:51] } 18... Ne5 { [%clk 1:10:32] } 19. Qb1 { [%clk 0:57:40] } 19... Nc4 { [%clk 1:07:31] } 20. Bxe6 { [%clk 0:42:45] } 20... fxe6 { [%clk 1:07:25] } 21. Rd1 { [%clk 0:41:49] } 21... Qc8 { [%clk 1:01:26] } 22. Nde2 { [%clk 0:34:48] } 22... Kg8 { [%clk 0:54:00] } 23. b3 { [%clk 0:31:56] } 23... Nd6 { [%clk 0:51:39] } 24. Qd3 { [%clk 0:31:26] } 24... b5 { [%clk 0:45:36] } 25. Rac1 { [%clk 0:31:00] } 25... Re7 { [%clk 0:45:34] } 26. a3 { [%clk 0:28:00] } 26... Rec7 { [%clk 0:43:28] } 27. Na2 { [%clk 0:27:20] } 27... Nfe4 { [%clk 0:37:24] } 28. g4 { [%clk 0:23:21] } 28... Nf6 { [%clk 0:28:31] } 29. f3 { [%clk 0:22:45] } 29... e5 { [%clk 0:28:07] } 30. Rxc5 { [%clk 0:17:58] } 30... Rxc5 { [%clk 0:28:26] } 31. Rc1 { [%clk 0:18:21] } 31... e4 { [%clk 0:25:56] } 32. Qd4 { [%clk 0:17:02] } 32... Rxc1+ { [%clk 0:26:02] } 33. Naxc1 { [%clk 0:17:24] } 33... Nf7 { [%clk 0:24:04] } 34. Qc3 { [%clk 0:15:43] } 34... Qf8 { [%clk 0:24:06] } 35. a4 { [%clk 0:11:23] } 35... exf3 { [%clk 0:22:04] } 36. gxf3 { [%clk 0:11:46] } 36... Ng5 { [%clk 0:22:26] } 37. Nf4 { [%clk 0:05:12] } 37... Nxf3+ { [%clk 0:22:02] } 38. Kg2 { [%clk 0:05:36] } 38... Ng5 { [%clk 0:20:42] } 39. Qc6 { [%clk 0:05:01] } 39... Qe7 { [%clk 0:19:19] } 40. Qc8+ { [%clk 0:05:01] } 40... Kf7 { [%clk 0:19:36] } 41. Ncd3 { [%clk 0:02:20] } 41... Qxe3 { [%clk 0:07:07] } 42. Qc7+ { [%clk 0:30:16] } 42... Kg8 { [%clk 0:37:07] } 43. Qc8+ { [%clk 0:30:39] } 43... Ne8 { [%clk 0:37:04] } 44. Nxd5 { [%clk 0:22:00] } 44... Qf3+ { [%clk 0:32:02] } 45. Kg1 { [%clk 0:21:19] } 45... Qg3+ { [%clk 0:30:28] } 46. Kh1 { [%clk 0:21:43] } 46... Qxd3 { [%clk 0:23:11] } 47. Qxe8+ { [%clk 0:22:09] } 47... Kh7 { [%clk 0:23:32] } 48. Qd7 { [%clk 0:17:58] } 48... Qf1+ { [%clk 0:22:36] } 49. Kh2 { [%clk 0:17:03] } 49... Qf2+ { [%clk 0:22:57] } 50. Kh1 { [%clk 0:17:32] } 50... bxa4 { [%clk 0:20:59] } 51. bxa4 { [%clk 0:17:41] } 51... Qf1+ { [%clk 0:21:13] } 52. Kh2 { [%clk 0:18:06] } 52... Qe2+ { [%clk 0:21:28] } 53. Kh1 { [%clk 0:17:51] } 53... Ne6 { [%clk 0:19:48] } 54. Qd6 { [%clk 0:09:57] } 54... Qxg4 { [%clk 0:16:59] } 55. Ne7 { [%clk 0:08:57] } 55... Nf4 { [%clk 0:16:19] } 56. Qd2 { [%clk 0:09:05] } 56... Qh4+ { [%clk 0:15:42] } 57. Kg1 { [%clk 0:09:23] } 57... Qxe7 { [%clk 0:15:22] } 58. Qxf4 { [%clk 0:09:39] } 58... Qg5+ { [%clk 0:15:41] } 59. Qxg5 { [%clk 0:10:06] } 59... hxg5 { [%clk 0:16:01] } 60. Kg2 { [%clk 0:10:32] } 60... Kg6 { [%clk 0:16:08] } 61. Kg3 { [%clk 0:10:59] } 61... Kf5 { [%clk 0:16:22] } 62. Kf3 { [%clk 0:11:23] } 62... a5 { [%clk 0:16:12] } 0-1